Cogmind - Beta 17 @@@ ROGUE MODE // 2026.08.12 @ 08:38:02 Player: Drosofila Result: Destroyed by G-47 Trooper with Particle Gun Performance ------------- Evolutions (2) 1000 Regions Visited (3) 600 Robots Destroyed (41) 205 Value Destroyed (941) 941 Prototype IDs (1) 20 Alien Tech Used (0) 0 Bonus (0) 0 TOTAL SCORE: 2766 Bonus ------- None Cogmind --------- Core Integrity 0/550 Matter 132/300 Energy 100/100 System Corruption 0% Temperature Cool (9) Movement Core (350) Ox6 Location -8/Materials Parts ------- > --- POWER (2) -------- (None) > --- PROPULSION (3) --- (None) > --- UTILITY (3) ------ Large Storage Unit > --- WEAPON (3) ------- (None) > --- INVENTORY (15) --- Ion Engine Improved Ion Engine Peak State ------------ > --- POWER ------------ Light Ion Engine Light Nuclear Core > --- PROPULSION ------- Light Treads Light Treads Carbon-fiber Leg > --- UTILITY ---------- Heat Sink Large Storage Unit > --- WEAPON ----------- Particle Cannon Mini Grenade Launcher > --- INVENTORY -------- Ion Engine Improved Ion Engine Aluminum Leg Aluminum Leg [Rating: 15] Favorites ----------- Power Light Nuclear Core Engine Ion Engine Power Core Light Nuclear Core Propulsion Aluminum Leg Treads Light Treads Leg Aluminum Leg Utility Large Storage Unit Device Heat Sink Storage Large Storage Unit Processor Targeting Computer Weapon Light Assault Rifle Energy Gun EM Pulse Gun Energy Cannon Particle Cannon Ballistic Gun Light Assault Rifle Launcher Mini Grenade Launcher Special Weapon Mining Laser Build | -11 -10 -9 -8 ------- Run | Yrd Mat Mat Mat Slots Evolved 4 | . . 2 2 Power 1 | . . . 1 Propulsion 1 | . . . 1 Utility 1 | . . 1 . Weapon 1 | . . 1 . Parts Attached 27 | 6 4 9 8 Power 5 | 1 . 1 3 Engine 3 | 1 . . 2 Core 2 | . . 1 1 Reactor . | . . . . Propulsion 8 | 2 . 3 3 Treads 2 | . . 2 . Leg 6 | 2 . 1 3 Wheel . | . . . . Hover . | . . . . Flight . | . . . . Utility 4 | 1 2 1 . Device 1 | . . 1 . Storage 2 | 1 1 . . Processor 1 | . 1 . . Hackware . | . . . . Protection . | . . . . Artifact . | . . . . Weapon 10 | 2 2 4 2 Energy Gun 2 | 2 . . . Energy Cannon 1 | . . 1 . Ballistic Gun 5 | . 2 1 2 Ballistic Cannon . | . . . . Launcher 1 | . . 1 . Special Weapon 1 | . . 1 . Impact Weapon . | . . . . Slashing Weapon . | . . . . Piercing Weapon . | . . . . Special Melee Weapon . | . . . . Unidentified Prototypes 1 | . . . 1 Parts Lost 17 | . 2 2 13 Power 3 | . . . 3 Propulsion 4 | . . 1 3 Utility 2 | . 1 . 1 Weapon 8 | . 1 1 6 Highest Loss Streak 10 | . 2 2 10 To Critical Strikes . | . . . . Average Backups 3 | 1 2 3 3 Power 2 | . 1 2 2 Propulsion . | . . . . Utility . | . . . . Weapon . | . . . . Tool/Special . | . . . . Unused Backups 2 | . 1 . 1 Power 1 | . . . 1 Propulsion . | . . . . Utility . | . . . . Weapon 1 | . 1 . . Tool/Special . | . . . . Average Slot Usage (%) 79 | . 86 81 63 Engine 6 | . 14 1 5 Core 5 | . . 9 4 Treads 5 | . . 7 12 Leg 16 | . 27 14 2 Device 5 | . . 8 7 Storage 11 | . 14 11 9 Energy Gun 6 | . 21 . . Energy Cannon 3 | . . 4 8 Ballistic Gun 14 | . 6 22 10 Special Weapon 1 | . . 3 . Peak Build Rating 15 | 6 7 12 15 Average Rating 8 | 3 6 9 10 On Entrance 6 | . 6 6 12 Avg Prop Armor Cover (%) . | . . . . Naked Turns . | . . . . Heaviest Build 37 | 14 28 34 37 Greatest Support 40 | 20 20 40 40 Greatest Overweight (x) 7 | . 2 3 7 Average Overweight (x) . | . . . . Largest Inventory Capacity 15 | 8 15 15 15 Average Capacity 13 | 6 10 15 15 Most Carried 7 | 5 5 7 7 Average Carried 3 | 1 2 3 3 Final Capacity 15 | 8 15 15 15 Final Carried 4 | 1 2 4 2 Class Distribution -------------------- 42% | Scavenger-Gunner 41% | Mutant 16% | Scavenger-Mutant Dominant Class ---------------- Mutant | -10/Materials Scavenger-Gunner | -9/Materials Scavenger-Mutant | -8/Materials Resources | -11 -10 -9 -8 ----------- Run | Yrd Mat Mat Mat Matter Collected 627 | 220 50 177 180 Remotely . | . . . . Salvage Created 958 | . 166 239 553 Parts 61 | . 14 15 32 Haulers Intercepted 1 | . . . 1 Recyclers Shooed 6 | . 3 . 3 Parts Field Recycled . | . . . . Retrieved Matter . | . . . . Parts Self-Destructed . | . . . . Prevented . | . . . . Parts Restored . | . . . . Kills | -11 -10 -9 -8 ------- Run | Yrd Mat Mat Mat Combat Hostiles Destroyed 25 | . 6 9 10 Guns 11 | . 6 3 2 Cannons 2 | . . 2 . AOE 12 | . . 4 8 Classes Destroyed 10 | . 3 2 5 Worker 4 | . 1 . 3 Builder 3 | . . . 3 Tunneler 2 | . . . 2 Hauler 1 | . . . 1 Recycler 2 | . . . 2 Watcher 4 | . 1 1 2 Swarmer 10 | . 6 4 . Grunt 10 | . . 3 7 Sentry 3 | . . 2 1 Hunter 2 | . . . 2 Best Kill Streak 21 | . 5 4 21 Combat Bots Only 4 | . 3 4 4 Max Kills in Single Turn 5 | . 1 3 5 Gunslinging . | . . . . Exploded 3 | . . 3 1 Melee . | . . . . Uniques/NPCs Destroyed . | . . . . Combat | -11 -10 -9 -8 -------- Run | Yrd Mat Mat Mat Hostile Shots Fired 212 | . 38 53 121 Missed 58 | . 13 17 28 Hits 154 | . 25 36 93 Projectile 154 | . 25 36 93 Critical Strikes 8 | . . 2 6 Damage Taken 2184 | . 200 462 1522 Core 713 | . 59 91 563 Absorbed by Shields . | . . . . Core Remaining (%) 84 | 100 76 77 . Volleys Fired 98 | . 26 36 36 Largest 3 | . 2 3 3 Hottest 140 | . 80 140 111 Shots Fired 177 | . 44 76 57 Gun 132 | . 44 66 22 Cannon 23 | . . 6 17 Launcher 21 | . . 3 18 Special 1 | . . 1 . Kinetic 91 | . 3 66 22 Thermal 24 | . . 7 17 Explosive 21 | . . 3 18 Electromagnetic 41 | . 41 . . Robot Hit Streak 8 | . 6 8 5 Robot Miss Streak 9 | . 9 3 3 Penetration Max . | . . . . Secondary Targets . | . . . . Shots Hit Robots 88 | . 21 45 22 Core Hits 74 | . 10 19 45 Critical Kills . | . . . . Critical Parts Destroyed . | . . . . Critical Strikes . | . . . . Melee Attacks . | . . . . Impact . | . . . . Slashing . | . . . . Piercing . | . . . . Sneak Attacks . | . . . . Combat Hostiles . | . . . . Follow-up Attacks . | . . . . Damage Inflicted 2905 | . 364 733 1808 Guns 868 | . 331 377 160 Cannons 183 | . . 40 143 Explosions 1830 | . 33 292 1505 Melee . | . . . . Ramming . | . . . . Kinetic 543 | . 6 377 160 Thermal 240 | . 33 64 143 Explosive 1797 | . . 292 1505 Electromagnetic 325 | . 325 . . Impact . | . . . . Slashing . | . . . . Piercing . | . . . . Highest Corruption 3 | . . 3 . Average Corruption 2 | . . 2 . Corruption Purged . | . . . . Corruption Blocked . | . . . . Effects 6 | . . 6 . Message Errors 3 | . . 3 . Matter Fused 2 | . . 2 . Data Loss (minor) 1 | . . 1 . Overload Shots . | . . . . Overflow Damage 27 | . 3 10 14 Projectiles . | . . . . Explosions 27 | . 3 10 14 Melee . | . . . . Knockbacks . | . . . . Impact . | . . . . Kinetic . | . . . . Secondary . | . . . . Self-Inflicted Damage 37 | . . . 37 Shots 1 | . . . 1 Rammed . | . . . . Targets Rammed 1 | . 1 . . Kicked 1 | . 1 . . Crushed . | . . . . Highest Temperature 116 | . 108 116 72 Average Temperature 36 | . 49 24 24 Received Heat Transfer 942 | . . 186 756 Siege Activations . | . . . . Martial Activations . | . . . . Shielding Activations . | . . . . Robots Disrupted . | . . . . Combat Hostiles . | . . . . Robots Corrupted . | . . . . Combat Hostiles . | . . . . Parts Fried . | . . . . Impact Corruptions . | . . . . Robots Melted . | . . . . Combat Hostiles . | . . . . Parts Melted . | . . . . Heat Transferred 433 | . 50 124 259 Parts Sabotaged . | . . . . Parts Stolen . | . . . . Parts Stripped . | . . . . Power Chain Reactions 1 | . 1 . . Alert | -11 -10 -9 -8 ------- Run | Yrd Mat Mat Mat Maximum Alert Level 1 | . . . 1 Low Security (%) 97 | 100 100 100 88 Level 1 2 | . . . 11 Level 2 . | . . . . Level 3 . | . . . . Level 4 . | . . . . Level 5 . | . . . . High Security . | . . . . Max Security . | . . . . Peak Influence 259 | . 87 117 259 Initial . | . . . . Average 40 | . 31 37 69 Influence Increases 838 | . 191 258 389 Destroy 0b10 Robot/C 500 | . 120 180 200 Destroy 0b10 Robot/NC 80 | . 10 5 65 Destroy Leader 120 | . 22 52 46 Successful Hack 4 | . 4 . . Disable Machine 30 | . 15 . 15 Destroy Structure 89 | . 5 21 63 Lose Combat Pursuer 15 | . 15 . . Influence Decreases 659 | . 191 258 210 Time Decay 499 | . 171 238 90 Lost Part 160 | . 20 20 120 Squads Dispatched 2 | . . 1 1 Investigation 1 | . . 1 . Extermination . | . . . . Reinforcement 1 | . . . 1 Assault . | . . . . Garrison . | . . . . Intercept . | . . . . Searches Triggered . | . . . . Construction Impeded 1 | . . . 1 Haulers Reinforced . | . . . . Active Scanning Responses . | . . . . Cargo Convoy Interrupts . | . . . . Stealth | -11 -10 -9 -8 --------- Run | Yrd Mat Mat Mat Distress Signals 3 | . . . 3 Communications Jammed . | . . . . Distress Signals . | . . . . Times Spotted 45 | . 13 14 18 Peak Tracking Total 6 | . 4 5 6 Tactical Retreats 1 | . 1 . . Traps | -11 -10 -9 -8 ------- Run | Yrd Mat Mat Mat Traps Triggered 4 | . 1 3 . Indirectly . | . . . . Trap Hack Attempts . | . . . . Triggered . | . . . . Disarmed . | . . . . Reprogrammed . | . . . . Reused . | . . . . Traps Extracted . | . . . . Installed . | . . . . Triggered . | . . . . Machines | -11 -10 -9 -8 ---------- Run | Yrd Mat Mat Mat Machines Disabled 2 | . 1 . 1 Max in Single Turn 1 | . 1 . 1 Machines Repaired . | . . . . Machines Dismantled . | . . . . Machines Sabotaged . | . . . . Overloaded Fab Kills . | . . . . Hacking | -11 -10 -9 -8 --------- Run | Yrd Mat Mat Mat Machines Accessed 4 | . 3 1 . Terminals 3 | . 3 . . Fabricators . | . . . . Repair Stations . | . . . . Recycling Units . | . . . . Scanalyzers 1 | . . 1 . Garrison Access . | . . . . Total Hacks 4 | . 3 1 . Successful 4 | . 3 1 . Failed . | . . . . Catastrophic . | . . . . Database Lockouts . | . . . . Manual . | . . . . Terminals 3 | . 3 . . Fabricators . | . . . . Repair Stations . | . . . . Recycling Units . | . . . . Scanalyzers 1 | . . 1 . Garrison Access . | . . . . Terminal Hacks 3 | . 3 . . Record 2 | . 2 . . Alert Level 1 | . 1 . . Fabricator Hacks . | . . . . Repair Station Hacks . | . . . . Recycling Unit Hacks . | . . . . Scanalyzer 1 | . . 1 . Insert Component 1 | . . 1 . Garrison Access Hacks . | . . . . Unauthorized Hacks . | . . . . Terminals . | . . . . Fabricators . | . . . . Repair Stations . | . . . . Recycling Units . | . . . . Scanalyzers . | . . . . Garrison Access . | . . . . Data Cores Recovered . | . . . . Used . | . . . . Hacking Detections 2 | . 2 . . Full Trace Events . | . . . . Feedback Events . | . . . . Feedback Blocked . | . . . . Robot Schematics Acquired . | . . . . Robots Built . | . . . . Authchips . | . . . . Time . | . . . . Total Robot Build Rating . | . . . . Part Schematics Acquired . | . . . . Parts Built . | . . . . Authchips . | . . . . Time . | . . . . Total Part Build Rating . | . . . . Part Studies Acquired . | . . . . Parts Repaired . | . . . . Time . | . . . . Parts Recycled . | . . . . Recycled Matter . | . . . . Retrieved Matter . | . . . . Retrieved Components . | . . . . Parts Scanalyzed . | . . . . Part Schematics Acquired . | . . . . Parts Damaged . | . . . . Bothacking | -11 -10 -9 -8 ------------ Run | Yrd Mat Mat Mat Used RIF Installer . | . . . . Robots Hacked . | . . . . Non-combat . | . . . . Combat . | . . . . Robot Hacks Applied . | . . . . Relay Couplers Released . | . . . . Fabnet Peak Effective % . | . . . . Robots Rewired . | . . . . Allies Hacked . | . . . . Hacks Repelled . | . . . . Allies | -11 -10 -9 -8 -------- Run | Yrd Mat Mat Mat Total Allies . | . . . . Largest Group . | . . . . Highest-Rated Group . | . . . . Highest-Rated Ally . | . . . . Total Orders . | . . . . Ally Attacks . | . . . . Total Damage . | . . . . Kills . | . . . . Allies Corrupted . | . . . . Allies Melted . | . . . . Intel | -11 -10 -9 -8 ------- Run | Yrd Mat Mat Mat Active Infowar (turns) . | . . . . Robot Analysis Total . | . . . . Derelict Logs Recovered . | . . . . Drone Launches . | . . . . Drone Recoveries . | . . . . Exploration | -11 -10 -9 -8 ------------- Run | Yrd Mat Mat Mat Turns Passed 1620 | 53 508 766 293 Spaces Moved 794 | 45 301 349 99 Core 31 | 25 . . 6 Treads 235 | . . 154 81 Legs 528 | 20 301 195 12 Wheels . | . . . . Hover . | . . . . Flight . | . . . . Fastest Speed 50 | 50 120 160 120 Average Speed 158 | 81 139 179 177 Slowest Speed 400 | 120 260 330 400 Overloaded Moves . | . . . . Propulsion Burnouts . | . . . . Robots Hopped . | . . . . Potential Cave-ins . | . . . . Cave-ins Triggered . | . . . . Exploration Rate (%) 27 | 3 54 36 15 Regions Visited 3 Branch Regions . Pre-discovered Areas . | . . . . Known Exits Taken . | . . . . Unknown Exits Taken 3 | 1 1 1 . Scrap Searched . | . . . . Spaces Dug . | . . . . Terrain Destroyed 107 | . 4 19 84 Melee . | . . . . Projectile . | . . . . AOE 107 | . 4 19 84 Terrain Rammed . | . . . . Walls Destroyed . | . . . . Machines Disabled . | . . . . Actions | -11 -10 -9 -8 --------- Run | Yrd Mat Mat Mat Total 1008 | 61 348 429 170 Wait 43 | 4 3 20 16 Move 791 | 44 300 348 99 Hop . | . . . . Pick Up 32 | 7 9 10 6 Fast Attach . | . . . . Attach 29 | 6 6 8 9 Detach 1 | . . . 1 Swap 4 | . . 3 1 Drop 9 | . 3 4 2 Fire 98 | . 26 36 36 Melee . | . . . . Ram . | . . . . Kick 1 | . 1 . . Crush . | . . . . Escape Stasis . | . . . . Rewire . | . . . . Trap . | . . . . Miscellaneous . | . . . . Route ------- -11/Scrapyard -10/Materials -9/Materials -8/Materials (discovered 1 exit: [*Sto]) History --------- Turn | Location | Event 13 | -11/Scrapyard | Discovered new exit (range 15) 54 | -11/Scrapyard | Entered Materials 313 | -10/Materials | Build established: Mutant 554 | -10/Materials | Discovered new exit (range 4) 562 | -10/Materials | Entered another Materials area 562 | -9/Materials | Evolved 2 slots: Utility x1, Weapon x1 1311 | -9/Materials | Discovered new exit (range 8) 1328 | -9/Materials | Entered another Materials area 1328 | -8/Materials | Evolved 2 slots: Power x1, Propulsion x1 1328 | -8/Materials | Discovered new exit (range 14) 1341 | -8/Materials | Build established: Scavenger-Gunner 1598 | -8/Materials | Core integrity fell below 50% 1613 | -8/Materials | Core integrity fell below 20% 1621 | -8/Materials | Destroyed by G-47 Trooper with Particle Gun Last Messages --------------- Identified Enh. Autogun. Faulty integration damages Lrg. Storage Unit (-194). U-05 Engineer lays Concrete. U-05 Engineer builds a Wall. Acquired 8 matter. U-05 Engineer lays Concrete. U-05 Engineer builds a Wall. U-05 Engineer lays Concrete. Critical hit (Burn: +37). The unstable cave ceiling collapses. U-05 Engineer lays Concrete. U-05 Engineer destroyed. Acquired Enh. Autogun. U-05 Engineer lays Concrete. Faulty Enh. Autogun destroyed. Critical hit (Burn: +37). U-05 Engineer builds a Wall. Enh. Autogun destroyed. U-05 Engineer lays Concrete. U-05 Engineer builds a Wall. Map ----- +----------------------------------------------------+ | ?????????????????????????????????????????????????? | | ?????????????????????????????????????????????????? | | ?????????????????????????????????????????????????? | | ?????????????????????????????????????????????????? | | ?????????????????????????????????????????????????? | | ?????????????????????????????????????????????????? | | ?????????????????????????????????????????????????? | | ?????????????????????????????????????????????????? | | ?????????????????????????????????????????????????? | | ?????????????????????????????????????????????????? | | ??????????????????????? ???????????????????????? | | ??????????????????????? ???????????????????????? | | ??????????????????????? ???????????????????????? | | ??????????????????????? ???????????????????????? | | ???????????????????????] ???????????????????????? | | ??????????????????????? ???????????????????????? | | ??????????????????????? ???????????????????????? | | ??????????????????????? ?????##????????????????? | | ??????????????????????? ???? """ ??????????????? | | ??????????????????????##+##### "T"???????????????? | | ??????????????????##### * ; ??????????????? | | ?????????????????? w = #""" #?????????????? | | ??????????????????##### """ ]#?????????????? | | ??????????????????# # [ " #?????????????? | | ??????????????????# #u * [# !#?????????????? | | ?????????????###### # @ [ ########??????????? | | ?????????????# # ?????????? | | ?????????????# """ ######???????????? | | ?????????????? """ = !![ #???????????? | | ?????????????# """ = *! !![ #???????????? | | ?????????????# !! #???????????? | | ?????????????# "" =g ######???????????? | | ?????????????# """ g # ####?????????????? | | ?????????????# S" ####??????????? | | ?????????????# g ?????????? | | ?????????????######### = " ?????????? | | ?????????????????????# = %= ?????????? | | ?????????????????????# #=##### ####??????????? | | ???????????????????### # ####?# ##?????????????? | | ???????????????????# ## #?" ##?????????????? | | ???????????????????## u #? # ?????????????? | | ????????????????????## ##?# ?????????????? | | ?????????????????????# # # #??# # ?????????????? | | ?????????????????????## /###### #??????????????? | | ?????????????????????# # #??????????????? | | ?????????????????????# # #??????????????? | | ?????????????????????# # #??????????????? | | ?????????????????????# # #??????????????? | | ?????????????????????# + +??????????????? | | ?????????????????????# # #??????????????? | +----------------------------------------------------+ Best States ------------- Heat Dissipation 41 Energy Generation 19 Energy Capacity 275 Matter Stores 300 Matter Capacity 300 Sight Range 16 Terrain Scan Density 10 Evasion (%) 55 Targeting Accuracy 5 Recoil Reduction 2 Item Schematics ----------------- None Robot Schematics ------------------ None Fabricated ------------ Nothing Repaired ---------- Nothing Studied --------- None Alien Tech Used ----------------- None Achievements -------------- Resistances Are Futile Challenges ------------ None Game ------ Seed IntegratedUltimateCartridge Manual? 0 Play Time 00:21:22 Cumulative 2.8 hours Start 2026.08.12 @ 08:18:02 End 2026.08.12 @ 08:38:02 Sessions 1 Manual Loads 0 Difficulty Rogue Special Mode None Game No. 5 Rogue 5 Adventurer 0 Explorer 0 Win Type - Total 0 Types 0/0/0/0/0/0/0/0/0/0 Lore% 0 Gallery% 4 Achievement% 5 Wizard Run 0 Options --------- Layout 0 ASCII 0 Keyboard 0 Movement Mouse Keybinds 0 Fullscreen 1 Font 18/Terminus Map View 38x25 Zoom Use 97% Tactical HUD 0 Map Filters NONE Filters NONE Steam 1 RUN: 9308a1b9-1238-46a3-8b9b-4767d9be420e